[Event "Klass I-IV 2025"]
[Site "Uppsala, Sweden"]
[Date "2025.07.01"]
[Round "2.1"]
[White "Andersson, Gorgen"]
[Black "Wingborg, Mats"]
[Result "1/2-1/2"]
[TimeControl "90 min for 40 move + 30 min with an increment of 30 sec starting move 1"]
[WhiteFideId "1707698"]
[BlackFideId "1748114"]
[WhiteElo "1891"]
[BlackElo "1951"]

1. e4 {[%emt 93:27:10]} e5 {[%emt 00:00:08]} 2. Nf3 {[%emt 00:00:20]} Nc6
{[%emt 00:00:06]} 3. Bc4 {[%emt 00:00:17]} Nf6 {[%emt 00:00:08]} 4. c3 {[%emt
00:00:46]} Nxe4 {[%emt 00:01:43]} 5. Qe2 {[%emt 00:00:24]} d5 {[%emt 00:02:12]}
6. Bb5 {[%emt 00:01:24]} Bd6 {[%emt 00:02:51]} 7. d3 {[%emt 00:00:20]} Nf6
{[%emt 00:01:14]} 8. Nxe5 {[%emt 00:01:10]} Bxe5 {[%emt 00:07:54]} 9. Qxe5+
{[%emt 00:00:43]} Qe7 {[%emt 00:00:50]} 10. Qxe7+ {[%emt 00:02:15]} Kxe7 {[%emt
00:00:02]} 11. O-O {[%emt 00:03:34]} h6 {[%emt 00:01:05]} 12. Bf4 {[%emt
00:03:22]} Kd8 {[%emt 00:00:39]} 13. Nd2 {[%emt 00:00:34]} Bf5 {[%emt
00:01:37]} 14. Nf3 {[%emt 00:05:34]} Ne7 {[%emt 00:06:04]} 15. h3 {[%emt
00:04:31]} Ng6 {[%emt 00:02:12]} 16. Bh2 {[%emt 00:06:35]} a6 {[%emt 00:20:38]}
17. Nd4 {[%emt 00:00:08]} Bc8 {[%emt 00:00:35]} 18. Ba4 {[%emt 00:00:25]} c5
{[%emt 00:00:48]} 19. Nf3 {[%emt 00:00:53]} Bf5 {[%emt 00:01:11]} 20. Rfd1
{[%emt 00:04:48]} b5 {[%emt 00:03:00]} 21. Bb3 {[%emt 00:01:01]} Kd7 {[%emt
00:01:57]} 22. c4 {[%emt 00:01:23]} d4 {[%emt 00:04:41]} 23. cxb5 {[%emt
00:02:41]} Be6 {[%emt 00:00:38]} 24. Bxe6+ {[%emt 00:00:45]} fxe6 {[%emt
00:00:50]} 25. bxa6 {[%emt 00:01:18]} Rxa6 {[%emt 00:00:12]} 26. Rdc1 {[%emt
00:00:53]} Rc8 {[%emt 00:00:44]} 27. a3 {[%emt 00:03:12]} Kc6 {[%emt 00:03:31]}
28. Nxd4+ {[%emt 00:00:41]} Kd5 {[%emt 00:02:32]} 29. Nf3 {[%emt 00:02:03]}
Rca8 {[%emt 00:01:32]} 30. Rc3 {[%emt 00:00:43]} e5 {[%emt 00:01:52]} 31. Rac1
{[%emt 00:00:33]} Nd7 {[%emt 00:00:16]} 32. Nd2 {[%emt 00:01:56]} Rb8 {[%emt
00:01:43]} 33. Nb3 {[%emt 00:04:12]} Rb5 {[%emt 00:00:57]} 34. Nd2 {[%emt
00:03:45]} Rxb2 {[%emt 00:01:20]} 35. Nc4 {[%emt 00:01:38]} Ra2 {[%emt
00:01:10]} 36. Bg3 {[%emt 00:01:27]} Nf4 {[%emt 00:01:00]} 37. Bxf4 {[%emt
00:06:45]} exf4 {[%emt 00:00:03]} 38. Re1 {[%emt 00:02:21]} Re6 {[%emt
00:06:54]} 39. Rxe6 {[%emt 00:05:13]} Kxe6 {[%emt 00:01:56]} 40. Rb3 {[%emt
00:01:23]} g5 {[%emt 00:09:43]} 41. Rb7 {[%emt 00:01:17]} Ra1+ {[%emt
00:07:23]} 42. Kh2 {[%emt 00:00:13]} Rd1 {[%emt 00:01:18]} 43. Rb3 {[%emt
00:05:14]} Kd5 {[%emt 00:05:55]} 44. a4 {[%emt 00:06:27]} Kd4 {[%emt 00:04:48]}
45. Nb2 {[%emt 00:06:08]} Ra1 {[%emt 00:03:50]} 46. g3 {[%emt 00:04:04]} Ne5
{[%emt 00:07:07]} 47. gxf4 {[%emt 00:01:10]} gxf4 {[%emt 00:00:07]} 48. Kg2
{[%emt 00:00:34]} h5 {[%emt 00:00:29]} 49. Rb5 {[%emt 00:04:34]} h4 {[%emt
00:01:23]} 50. Rb8 {[%emt 00:03:00]} f3+ {[%emt 00:01:02]} 51. Kh2 {[%emt
00:00:10]} Kc3 {[%emt 00:01:00]} 52. Rb5 {[%emt 00:01:08]} Nxd3 {[%emt
00:03:13]} 53. Nxd3 {[%emt 00:00:40]} Kxd3 {[%emt 00:00:06]} 54. Rxc5 {[%emt
00:00:17]} Rxa4 {[%emt 00:00:22]} 55. Rc1 {[%emt 00:02:19]} Ra2 {[%emt
00:01:04]} 56. Kg1 {[%emt 00:00:38]} Ke2 {[%emt 00:00:09]} 57. Rb1 {[%emt
00:00:40]} Rd2 {[%emt 00:00:16]} 58. Rb3 {[%emt 00:02:06]} Rd1+ {[%emt
00:00:26]} 59. Kh2 {[%emt 00:00:07]} Rf1 {[%emt 00:02:10]} 60. Rb2+ {[%emt
00:00:02]} Kd3 {[%emt 00:00:04]} 61. Rd2+ {[%emt 00:00:16]} 1/2-1/2

[Event "Klass I-IV 2025"]
[Site "Uppsala, Sweden"]
[Date "2025.07.01"]
[Round "2.2"]
[White "Haftorsson, Jon Ulfur"]
[Black "Dahlblom Sundin, Love"]
[Result "1/2-1/2"]
[TimeControl "90 min for 40 move + 30 min with an increment of 30 sec starting move 1"]
[WhiteFideId "2323206"]
[BlackFideId "1769065"]
[WhiteElo "1873"]
[BlackElo "1840"]

1. d4 {[%clk 01:30:58]} d5 {[%clk 01:30:19]} {[%emt 00:00:42]} 2. Nc3 {[%clk
01:30:51]} {[%emt 00:00:35]} Nf6 {[%clk 01:30:36]} {[%emt 00:00:14]} 3. Bf4
{[%clk 01:31:14]} {[%emt 00:00:06]} e6 {[%clk 01:30:36]} {[%emt 00:00:31]} 4.
e3 {[%clk 01:31:37]} {[%emt 00:00:07]} a6 {[%clk 01:30:08]} {[%emt 00:00:59]} 5.
Nf3 {[%clk 01:31:49]} {[%emt 00:00:18]} Bb4 {[%clk 01:26:48]} {[%emt 00:03:50]}
6. Bd3 {[%clk 01:31:40]} {[%emt 00:00:39]} c5 {[%clk 01:24:18]} {[%emt
00:03:00]} 7. dxc5 {[%clk 01:26:16]} {[%emt 00:05:54]} Qa5 {[%clk 01:20:12]}
{[%emt 00:04:36]} 8. O-O {[%clk 01:23:53]} {[%emt 00:02:52]} Bxc3 {[%clk
01:17:41]} {[%emt 00:03:01]} 9. bxc3 {[%clk 01:24:14]} {[%emt 00:00:09]} Qxc5
{[%clk 01:17:42]} {[%emt 00:00:29]} 10. Be5 {[%clk 01:22:44]} {[%emt 00:02:00]}
Nbd7 {[%clk 01:13:52]} {[%emt 00:04:21]} 11. Qd2 {[%clk 01:14:15]} {[%emt
00:08:58]} O-O {[%clk 00:57:04]} {[%emt 00:17:19]} 12. Bxf6 {[%clk 01:05:47]}
{[%emt 00:08:57]} Nxf6 {[%clk 00:56:53]} {[%emt 00:00:41]} 13. Ne5 {[%clk
01:06:09]} {[%emt 00:00:07]} g6 {[%clk 00:52:47]} {[%emt 00:04:37]} 14. c4
{[%clk 00:54:07]} {[%emt 00:12:32]} dxc4 {[%clk 00:50:55]} {[%emt 00:02:22]} 15.
Nxc4 {[%clk 00:53:07]} {[%emt 00:01:30]} Rd8 {[%clk 00:48:58]} {[%emt
00:02:28]} 16. Qa5 {[%clk 00:46:21]} {[%emt 00:07:16]} Qxa5 {[%clk 00:42:35]}
{[%emt 00:06:53]} 17. Nxa5 {[%clk 00:46:07]} {[%emt 00:00:43]} Nd5 {[%clk
00:39:48]} {[%emt 00:03:18]} 18. Rab1 {[%clk 00:46:01]} {[%emt 00:00:34]} b5
{[%clk 00:37:44]} {[%emt 00:02:35]} 19. Be4 {[%clk 00:43:42]} {[%emt 00:02:50]}
e5 {[%clk 00:35:18]} {[%emt 00:02:56]} 20. Nc6 {[%clk 00:42:23]} {[%emt
00:01:48]} Nc3 {[%clk 00:28:18]} {[%emt 00:07:31]} 21. Nxd8 {[%clk 00:42:11]}
{[%emt 00:00:42]} Nxe4 {[%clk 00:28:31]} {[%emt 00:00:16]} 22. Rbd1 {[%clk
00:39:15]} {[%emt 00:03:25]} Nc3 {[%clk 00:27:54]} {[%emt 00:01:08]} 23. Rd3
{[%clk 00:38:09]} {[%emt 00:01:36]} Nxa2 {[%clk 00:26:07]} {[%emt 00:02:17]} 24.
Nc6 {[%clk 00:28:33]} {[%emt 00:10:05]} Be6 {[%clk 00:23:47]} {[%emt 00:02:51]}
25. Rfd1 {[%clk 00:24:44]} {[%emt 00:04:19]} Kg7 {[%clk 00:20:25]} {[%emt
00:03:52]} 26. Rd8 {[%clk 00:20:52]} {[%emt 00:04:22]} Rxd8 {[%clk 00:20:09]}
{[%emt 00:00:48]} 27. Rxd8 {[%clk 00:19:18]} {[%emt 00:02:03]} Bf5 {[%clk
00:19:53]} {[%emt 00:00:46]} 28. Ra8 {[%clk 00:18:40]} {[%emt 00:01:07]} Bxc2
{[%clk 00:19:28]} {[%emt 00:00:54]} 29. Rxa6 {[%clk 00:18:57]} {[%emt
00:00:15]} Bb3 {[%clk 00:18:41]} {[%emt 00:01:17]} 30. Rb6 {[%clk 00:17:54]}
{[%emt 00:01:32]} Bc4 {[%clk 00:17:41]} {[%emt 00:01:30]} 31. Nxe5 {[%clk
00:17:53]} {[%emt 00:00:31]} Be2 {[%clk 00:17:11]} {[%emt 00:01:00]} 32. Rb7
{[%clk 00:14:50]} {[%emt 00:03:34]} b4 {[%clk 00:15:17]} {[%emt 00:02:23]} 33.
Rxf7+ {[%clk 00:14:33]} {[%emt 00:00:46]} Kg8 {[%clk 00:15:12]} {[%emt
00:00:35]} 34. Rb7 {[%clk 00:14:33]} {[%emt 00:00:31]} Bd1 {[%clk 00:13:57]}
{[%emt 00:01:45]} 35. Nd3 {[%clk 00:11:38]} {[%emt 00:03:24]} b3 {[%clk
00:13:30]} {[%emt 00:00:58]} 36. f3 {[%clk 00:08:36]} {[%emt 00:03:32]} Bc2
{[%clk 00:12:43]} {[%emt 00:01:16]} 37. Nb2 {[%clk 00:08:22]} {[%emt 00:00:44]}
Nc3 {[%clk 00:12:48]} {[%emt 00:00:27]} 38. e4 {[%clk 00:08:17]} {[%emt
00:00:34]} h5 {[%clk 00:11:34]} {[%emt 00:01:44]} 39. Kf2 {[%clk 00:08:37]}
{[%emt 00:00:10]} Kf8 {[%clk 00:11:45]} {[%emt 00:00:19]} 40. Ke3 {[%clk
00:08:02]} {[%emt 00:01:04]} Ke8 {[%clk 00:11:33]} {[%emt 00:00:43]} 41. Kd4
{[%clk 00:07:05]} {[%emt 00:01:25]} Ne2+ {[%clk 00:11:20]} {[%emt 00:00:46]} 42.
Ke5 {[%clk 00:05:12]} {[%emt 00:02:22]} Kd8 {[%clk 00:08:59]} {[%emt 00:02:51]}
43. Kd6 {[%clk 00:03:10]} {[%emt 00:02:32]} Kc8 {[%clk 00:09:12]} {[%emt
00:00:18]} 44. Rb6 {[%clk 00:00:56]} {[%emt 00:02:42]} Nd4 {[%clk 00:08:34]}
{[%emt 00:01:09]} 45. Kc5 {[%clk 00:30:07]} {[%emt 00:01:19]} Kc7 {[%clk
00:37:48]} {[%emt 00:01:16]} 46. Rxg6 {[%clk 00:28:54]} {[%emt 00:01:42]} Ne2
{[%clk 00:37:51]} {[%emt 00:00:28]} 47. Rg7+ {[%clk 00:26:29]} {[%emt
00:02:55]} Kc8 {[%clk 00:38:00]} {[%emt 00:00:21]} 48. Kd6 {[%clk 00:24:24]}
{[%emt 00:02:35]} Nd4 {[%clk 00:37:59]} {[%emt 00:00:31]} 49. Kc5 {[%clk
00:23:29]} {[%emt 00:01:23]} Ne6+ {[%clk 00:38:22]} {[%emt 00:00:09]} 50. Kd6
{[%clk 00:23:06]} {[%emt 00:00:54]} Nxg7 {[%clk 00:38:38]} {[%emt 00:00:14]} 51.
Ke7 {[%clk 00:23:12]} {[%emt 00:00:24]} h4 {[%clk 00:37:05]} {[%emt 00:02:03]}
52. g4 {[%clk 00:19:11]} {[%emt 00:04:30]} hxg3 {[%clk 00:37:22]} {[%emt
00:00:13]} 53. hxg3 {[%clk 00:19:38]} {[%emt 00:00:04]} Nh5 {[%clk 00:36:10]}
{[%emt 00:01:40]} 54. g4 {[%clk 00:16:07]} {[%emt 00:04:02]} Nf4 {[%clk
00:31:48]} {[%emt 00:04:52]} 55. g5 {[%clk 00:16:22]} {[%emt 00:00:15]} Ng6+
{[%clk 00:28:37]} {[%emt 00:03:40]} 56. Kf6 {[%clk 00:15:49]} {[%emt 00:01:03]}
Nf4 {[%clk 00:27:31]} {[%emt 00:01:38]} 57. g6 {[%clk 00:15:20]} {[%emt
00:00:58]} Kd7 {[%clk 00:26:51]} {[%emt 00:01:10]} 58. g7 {[%clk 00:14:31]}
{[%emt 00:01:19]} Nh5+ {[%clk 00:26:41]} {[%emt 00:00:40]} 59. Kf7 {[%clk
00:14:34]} {[%emt 00:00:26]} Nxg7 {[%clk 00:26:59]} {[%emt 00:00:13]} 60. Kxg7
{[%clk 00:14:57]} {[%emt 00:00:07]} Ke6 {[%clk 00:26:55]} {[%emt 00:00:34]} 61.
Kg6 {[%clk 00:13:29]} {[%emt 00:01:58]} Bxe4 {[%clk 00:24:34]} {[%emt
00:02:50]} 62. fxe4 {[%clk 00:13:45]} {[%emt 00:00:15]} Ke5 {[%clk 00:24:55]}
{[%emt 00:00:09]} 1/2-1/2

[Event "Klass I-IV 2025"]
[Site "Uppsala, Sweden"]
[Date "2025.07.01"]
[Round "2.3"]
[White "Krusa, Gustav"]
[Black "Johansson, Stina"]
[Result "1-0"]
[TimeControl "90 min for 40 move + 30 min with an increment of 30 sec starting move 1"]
[WhiteFideId "1751867"]
[BlackFideId "1739026"]
[WhiteElo "1614"]
[BlackElo "1719"]

1. d4 {[%clk 01:29:55]} {[%emt 00:01:04]} d5 {[%clk 01:29:59]} {[%emt
00:01:02]} 2. Nf3 {[%clk 01:30:15]} {[%emt 00:00:09]} e6 {[%clk 01:29:38]}
{[%emt 00:00:52]} 3. Bf4 {[%clk 01:30:31]} {[%emt 00:00:14]} Nf6 {[%clk
01:27:48]} {[%emt 00:02:20]} 4. e3 {[%clk 01:30:52]} {[%emt 00:00:09]} c5
{[%clk 01:26:17]} {[%emt 00:02:01]} 5. Nbd2 {[%clk 01:31:12]} {[%emt 00:00:10]}
Nc6 {[%clk 01:25:54]} {[%emt 00:00:53]} 6. c3 {[%clk 01:31:32]} {[%emt
00:00:09]} Nh5 {[%clk 01:24:23]} {[%emt 00:02:01]} 7. Bg5 {[%clk 01:30:50]}
{[%emt 00:01:12]} Be7 {[%clk 01:23:19]} {[%emt 00:01:34]} 8. Bxe7 {[%clk
01:30:29]} {[%emt 00:00:51]} Qxe7 {[%clk 01:23:38]} {[%emt 00:00:11]} 9. Ne5
{[%clk 01:27:46]} {[%emt 00:03:13]} Nf6 {[%clk 01:21:26]} {[%emt 00:02:43]} 10.
f4 {[%clk 01:24:23]} {[%emt 00:03:53]} Nxe5 {[%clk 01:16:40]} {[%emt 00:05:16]}
11. fxe5 {[%clk 01:24:41]} {[%emt 00:00:11]} Nd7 {[%clk 01:16:18]} {[%emt
00:00:52]} 12. Nf3 {[%clk 01:04:17]} {[%emt 00:20:53]} O-O {[%clk 01:07:21]}
{[%emt 00:09:29]} 13. Bd3 {[%clk 00:58:07]} {[%emt 00:06:40]} h6 {[%clk
01:01:21]} {[%emt 00:06:29]} 14. O-O {[%clk 00:56:04]} {[%emt 00:02:33]} f6
{[%clk 00:53:02]} {[%emt 00:08:49]} 15. exf6 {[%clk 00:55:11]} {[%emt
00:01:24]} Nxf6 {[%clk 00:52:44]} {[%emt 00:00:47]} 16. Ne5 {[%clk 00:53:39]}
{[%emt 00:02:02]} Ne4 {[%clk 00:45:01]} {[%emt 00:08:13]} 17. Bxe4 {[%clk
00:51:11]} {[%emt 00:02:58]} dxe4 {[%clk 00:43:55]} {[%emt 00:01:36]} 18. Qg4
{[%clk 00:50:09]} {[%emt 00:01:33]} Bd7 {[%clk 00:34:48]} {[%emt 00:09:36]} 19.
Rxf8+ {[%clk 00:50:05]} {[%emt 00:00:34]} Rxf8 {[%clk 00:34:15]} {[%emt
00:01:03]} 20. Ng6 {[%clk 00:50:14]} {[%emt 00:00:21]} Qd6 {[%clk 00:32:14]}
{[%emt 00:02:33]} 21. Nxf8 {[%clk 00:49:08]} {[%emt 00:01:35]} Kxf8 {[%clk
00:31:04]} {[%emt 00:01:39]} 22. Qxe4 {[%clk 00:47:34]} {[%emt 00:02:04]} Qb6
{[%clk 00:28:47]} {[%emt 00:02:48]} 23. Rf1+ {[%clk 00:44:39]} {[%emt
00:03:24]} Ke7 {[%clk 00:27:26]} {[%emt 00:01:51]} 24. Qe5 {[%clk 00:42:20]}
{[%emt 00:02:49]} cxd4 {[%clk 00:25:20]} {[%emt 00:02:37]} 25. exd4 {[%clk
00:41:38]} {[%emt 00:01:12]} Bc6 {[%clk 00:23:58]} {[%emt 00:01:51]} 26. Qxg7+
{[%clk 00:40:08]} {[%emt 00:02:00]} Kd6 {[%clk 00:24:01]} {[%emt 00:00:27]} 27.
Rf7 {[%clk 00:32:03]} {[%emt 00:08:35]} Bd5 {[%clk 00:22:12]} {[%emt 00:02:20]}
28. Qf8+ {[%clk 00:30:44]} {[%emt 00:01:49]} Kc6 {[%clk 00:22:12]} {[%emt
00:00:30]} 29. Qe8+ {[%emt 00:00:19]} Kd6 {[%clk 00:22:08]} {[%emt 00:00:31]}
30. Qd7# {[%clk 00:31:18]} {[%emt 00:00:10]} 1-0

[Event "Klass I-IV 2025"]
[Site "Uppsala, Sweden"]
[Date "2025.07.01"]
[Round "2.4"]
[White "Ohlund, Anders"]
[Black "Svensson, Christina"]
[Result "1-0"]
[TimeControl "90 min for 40 move + 30 min with an increment of 30 sec starting move 1"]
[WhiteFideId "1713620"]
[BlackFideId "1767518"]
[WhiteElo "1537"]
[BlackElo "1543"]

1. e4 {[%clk 01:30:56]} {[%emt 00:00:03]} c5 {[%clk 01:30:53]} {[%emt
00:00:08]} 2. Nf3 {[%clk 01:31:14]} {[%emt 00:00:11]} e6 {[%clk 01:31:02]}
{[%emt 00:00:22]} 3. c3 {[%clk 01:30:29]} {[%emt 00:01:15]} Nc6 {[%clk
01:30:05]} {[%emt 00:01:27]} 4. d4 {[%clk 01:29:13]} {[%emt 00:01:45]} cxd4
{[%clk 01:27:11]} {[%emt 00:03:24]} 5. cxd4 {[%clk 01:28:36]} {[%emt 00:01:06]}
Nf6 {[%clk 01:23:58]} {[%emt 00:03:44]} 6. e5 {[%clk 01:26:11]} {[%emt
00:02:55]} Nd5 {[%clk 01:22:13]} {[%emt 00:02:15]} 7. Bc4 {[%clk 01:23:30]}
{[%emt 00:03:10]} Na5 {[%clk 01:16:48]} {[%emt 00:05:56]} 8. Bxd5 {[%clk
01:20:49]} {[%emt 00:03:10]} exd5 {[%clk 01:16:22]} {[%emt 00:00:57]} 9. O-O
{[%clk 01:18:19]} {[%emt 00:03:00]} Be7 {[%clk 01:09:36]} {[%emt 00:07:17]} 10.
Nc3 {[%clk 01:14:04]} {[%emt 00:04:44]} O-O {[%clk 01:04:15]} {[%emt 00:05:51]}
11. Nxd5 {[%clk 01:11:55]} {[%emt 00:02:39]} d6 {[%clk 01:03:11]} {[%emt
00:01:35]} 12. Nxe7+ {[%clk 01:09:45]} {[%emt 00:02:40]} Qxe7 {[%clk 01:03:27]}
{[%emt 00:00:14]} 13. Qa4 {[%clk 01:05:55]} {[%emt 00:04:18]} Nc6 {[%clk
01:01:41]} {[%emt 00:02:18]} 14. b3 {[%clk 01:03:15]} {[%emt 00:03:09]} Qc7
{[%clk 00:51:55]} {[%emt 00:10:16]} 15. exd6 {[%clk 01:01:41]} {[%emt
00:02:04]} Qa5 {[%clk 00:52:04]} {[%emt 00:00:21]} 16. Qxa5 {[%clk 00:59:56]}
{[%emt 00:02:15]} Nxa5 {[%clk 00:52:29]} {[%emt 00:00:06]} 17. Ba3 {[%clk
00:56:44]} {[%emt 00:03:41]} Rd8 {[%clk 00:51:29]} {[%emt 00:01:31]} 18. Rfe1
{[%clk 00:53:51]} {[%emt 00:03:21]} Be6 {[%clk 00:50:14]} {[%emt 00:01:47]} 19.
Rac1 {[%clk 00:51:50]} {[%emt 00:02:30]} Nc6 {[%clk 00:49:31]} {[%emt
00:01:14]} 20. Rcd1 {[%clk 00:48:45]} {[%emt 00:03:35]} Bd5 {[%clk 00:49:28]}
{[%emt 00:00:34]} 21. Ne5 {[%clk 00:45:36]} {[%emt 00:03:38]} a5 {[%clk
00:43:05]} {[%emt 00:06:53]} 22. Nxc6 {[%clk 00:42:59]} {[%emt 00:03:06]} bxc6
{[%clk 00:43:30]} {[%emt 00:00:06]} 23. Bc5 {[%clk 00:40:25]} {[%emt 00:03:03]}
Rab8 {[%clk 00:37:23]} {[%emt 00:06:38]} 24. Re7 {[%clk 00:33:31]} {[%emt
00:07:23]} Be6 {[%clk 00:36:39]} {[%emt 00:01:15]} 25. Re1 {[%clk 00:29:05]}
{[%emt 00:04:55]} g6 {[%clk 00:34:46]} {[%emt 00:02:25]} 26. h3 {[%clk
00:27:07]} {[%emt 00:02:27]} Kg7 {[%clk 00:33:18]} {[%emt 00:01:58]} 27. Ra7
{[%clk 00:22:37]} {[%emt 00:05:00]} Ra8 {[%clk 00:30:07]} {[%emt 00:03:42]} 28.
Rxa8 {[%clk 00:22:17]} {[%emt 00:00:49]} Rxa8 {[%clk 00:30:30]} {[%emt
00:00:07]} 29. Bb6 {[%clk 00:19:48]} {[%emt 00:02:59]} a4 {[%clk 00:30:31]}
{[%emt 00:00:29]} 30. bxa4 {[%clk 00:18:14]} {[%emt 00:02:04]} Rxa4 {[%clk
00:30:33]} {[%emt 00:00:28]} 31. Rxe6 {[%clk 00:15:54]} {[%emt 00:02:50]} fxe6
{[%clk 00:30:06]} {[%emt 00:00:57]} 32. d7 {[%clk 00:16:15]} {[%emt 00:00:09]}
Ra8 {[%clk 00:30:07]} {[%emt 00:00:30]} 33. d8=Q {[%clk 00:16:11]} {[%emt
00:00:33]} Rxd8 {[%clk 00:30:36]} 34. Bxd8 {[%clk 00:16:04]} {[%emt 00:00:38]}
Kf7 {[%clk 00:30:51]} {[%emt 00:00:16]} 35. a4 {[%clk 00:15:47]} {[%emt
00:00:46]} Ke8 {[%clk 00:31:16]} {[%emt 00:00:05]} 36. Bb6 {[%clk 00:15:53]}
{[%emt 00:00:24]} Kd7 {[%clk 00:31:25]} {[%emt 00:00:22]} 37. a5 {[%clk
00:16:00]} {[%emt 00:00:22]} Kc8 {[%clk 00:31:42]} {[%emt 00:00:14]} 38. a6
{[%clk 00:15:31]} {[%emt 00:00:58]} h5 {[%clk 00:29:14]} {[%emt 00:02:57]} 39.
h4 {[%clk 00:15:06]} {[%emt 00:00:55]} 1-0

[Event "Klass I-IV 2025"]
[Site "Uppsala, Sweden"]
[Date "2025.07.02"]
[Round "3.1"]
[White "Iversen, Kent"]
[Black "Halvarsson, Peter"]
[Result "1-0"]
[TimeControl "90 min for 40 move + 30 min with an increment of 30 sec starting move 1"]
[WhiteFideId "1712390"]
[BlackFideId "1701843"]
[WhiteElo "2001"]
[BlackElo "1943"]

1. c4 {[%emt 00:11:21]} g6 {[%emt 00:00:24]} 2. Nc3 {[%emt 00:00:24]} Bg7
{[%emt 00:00:08]} 3. g3 {[%emt 00:00:28]} c5 {[%emt 00:02:03]} 4. Bg2 {[%emt
00:00:45]} Nc6 {[%emt 00:00:36]} 5. Nf3 {[%emt 00:04:31]} Nf6 {[%emt 00:04:08]}
6. d4 {[%emt 00:07:36]} cxd4 {[%emt 00:00:34]} 7. Nxd4 {[%emt 00:00:08]} O-O
{[%emt 00:01:17]} 8. O-O {[%emt 00:00:18]} Ng4 {[%emt 00:12:41]} 9. e3 {[%emt
00:07:55]} Nge5 {[%emt 00:02:58]} 10. b3 {[%emt 00:06:44]} d6 {[%emt 00:03:10]}
11. Bb2 {[%emt 00:00:41]} Bd7 {[%emt 00:06:28]} 12. Qd2 {[%emt 00:08:15]} Rc8
{[%emt 00:19:46]} 13. Kh1 {[%emt 00:14:00]} Bh6 {[%emt 00:08:20]} 14. f4 {[%emt
00:06:55]} Nxd4 {[%emt 00:11:10]} 15. exd4 {[%emt 00:01:22]} Nc6 {[%emt
00:04:55]} 16. Qf2 {[%emt 00:03:06]} Bg7 {[%emt 00:05:31]} 17. Rad1 {[%emt
00:04:25]} Bg4 {[%emt 00:00:54]} 18. Rd2 {[%emt 00:00:14]} b6 {[%emt 00:03:21]}
19. h3 {[%emt 00:04:44]} Bd7 {[%emt 00:00:59]} 20. Ne4 {[%emt 00:06:08]} f5
{[%emt 00:00:29]} 21. Ng5 {[%emt 00:00:22]} Bf6 {[%emt 00:02:47]} 22. Bd5+
{[%emt 00:03:07]} Kg7 {[%emt 00:00:37]} 23. Ne6+ {[%emt 00:00:35]} Bxe6 {[%emt
00:00:05]} 24. Bxe6 {[%emt 00:00:08]} Rc7 {[%emt 00:00:51]} 25. d5 {[%emt
00:02:58]} Nb4 {[%emt 00:00:22]} 26. g4 {[%emt 00:01:02]} fxg4 {[%emt
00:03:38]} 27. hxg4 {[%emt 00:00:29]} h6 {[%emt 00:00:39]} 28. Qe3 {[%emt
00:07:38]} Rh8 {[%emt 00:00:35]} 29. Kg2 {[%emt 00:00:23]} Qf8 {[%emt
00:00:46]} 30. g5 {[%emt 00:02:59]} Bxb2 {[%emt 00:00:21]} 31. Rxb2 {[%emt
00:00:41]} Na6 {[%emt 00:00:34]} 32. Qd4+ {[%emt 00:02:11]} Kh7 {[%emt
00:00:06]} 33. f5 {[%emt 00:00:32]} Qg7 {[%emt 00:02:10]} 34. fxg6+ {[%emt
00:00:17]} Kxg6 {[%emt 00:00:06]} 35. Qe4+ {[%emt 00:01:12]} Kh5 {[%emt
00:01:52]} 36. Qg4+ {[%emt 00:00:11]} Kg6 {[%emt 00:00:11]} 37. Qf5+ {[%emt
00:00:07]} Kh5 {[%emt 00:00:08]} 38. Rh1# {[%emt 00:00:08]} 1-0